fUSD/lending_fUSD_20241225
["ID","MTS","AMOUNT","RATE_DAILY","PERIOD"]
[346630867,1735131084099,-500.0,0.00012155,2]
[346630868,1735131084109,-500.0,0.00012155,2]
[346630869,1735131084122,-500.0,0.00012155,2]
[346630870,1735131084132,-1337.08,0.00012155,2]
[346630871,1735131084142,-500.0,0.00012155,2]
[346630872,1735131084152,-1454.36,0.00012155,2]
[346630873,1735131084162,-939.02,0.00012155,2]
[346630874,1735131084172,-558.64,0.00012155,2]
[346630875,1735131084182,-1046.44,0.00012155,2]
[346630876,1735131084192,-500.0,0.00012155,2]
[346630877,1735131084202,-906.6,0.00012155,2]
[346630878,1735131084211,-500.0,0.00012155,2]
[346630879,1735131084221,-500.0,0.00012155,2]
[346630880,1735131084231,-500.0,0.00012155,2]
[346630881,1735131084241,-1085.74,0.00012155,2]
[346630882,1735131084251,-711.38,0.00012155,2]
[346630883,1735131084261,-500.0,0.00012155,2]
[346630884,1735131084272,-2304.52,0.00012155,2]
[346630885,1735131084283,-1476.07,0.00012155,2]
[346630886,1735131084293,-2368.27,0.00012155,2]
[346630887,1735131084303,-1487.9,0.00012155,2]
[346630888,1735131084313,-1190.11,0.00012155,2]
[346630889,1735131084324,-500.0,0.00012155,2]
[346630890,1735131084334,-214.32,0.00012155,2]
[346630891,1735131084344,-500.0,0.00012155,2]
[346630892,1735131084354,-4164.09,0.00012155,2]
[346630893,1735131084365,-208.99,0.00012155,2]
[346630894,1735131084375,-1143.51,0.00012155,2]
[346630895,1735131084384,-6765.86,0.00012155,2]
[346630896,1735131084394,-2500.32,0.00012155,2]
[346630897,1735131084403,-3730.17,0.00012155,2]
[346630898,1735131084413,-1338.35,0.00012155,2]
[346630899,1735131084424,-500.0,0.00012155,2]
[346630900,1735131084433,-1747.75,0.00012155,2]
[346630901,1735131084446,-2277.64,0.00012155,2]
[346630902,1735131084456,-1193.19,0.00012155,2]
[346630903,1735131084467,-2786.79,0.00012155,2]
[346630904,1735131084477,-700.74,0.00012155,2]
[346630905,1735131084487,-562.74,0.00012155,2]
[346630906,1735131084496,-571.82,0.00012155,2]
[346630907,1735131084506,-1240.01,0.00012155,2]
[346630908,1735131084516,-8175.99,0.00012155,2]
[346630909,1735131084526,-948.34,0.00012155,2]
[346630910,1735131084535,-2773.89,0.00012155,2]
[346630911,1735131084545,-500.0,0.00012155,2]
[346630912,1735131084555,-1806.95,0.00012155,2]
[346630913,1735131084565,-7135.29,0.00012155,2]
[346630914,1735131084576,-275.48,0.00012155,2]
[346630915,1735131084586,-500.0,0.00012155,2]
[346630916,1735131084596,-575.73,0.00012155,2]
[346630917,1735131084605,-1295.14,0.00012155,2]
[346630918,1735131084616,-500.0,0.00012155,2]
[346630919,1735131084626,-867.2,0.00012155,2]
[346630920,1735131084636,-973.69,0.00012155,2]
[346630921,1735131084646,-500.0,0.00012155,2]
[346630922,1735131084656,-971.02,0.00012155,2]
[346630923,1735131084666,-500.0,0.00012155,2]
[346630924,1735131084676,-500.0,0.00012155,2]
[346630925,1735131084686,-500.0,0.00012155,2]
[346630926,1735131084696,-5812.71,0.00012155,2]
[346630927,1735131084706,-557.56,0.00012155,2]
[346630928,1735131084716,-500.0,0.00012155,2]
[346630929,1735131084726,-500.0,0.00012156,2]
[346630930,1735131084736,-500.0,0.00012156,2]
[346630931,1735131084745,-500.0,0.00012156,2]
[346630932,1735131084755,-500.0,0.00012156,2]
[346630933,1735131084765,-500.0,0.00012156,2]
[346630934,1735131084775,-500.0,0.00012156,2]
[346630935,1735131084785,-636.23,0.00012156,2]
[346630936,1735131084794,-500.0,0.00012156,2]
[346630937,1735131084804,-500.0,0.00012156,2]
[346630938,1735131084814,-500.0,0.00012156,2]
[346630939,1735131084824,-500.0,0.00012156,2]
[346630940,1735131084834,-500.0,0.00012156,2]
[346630941,1735131084843,-500.0,0.00012156,2]
[346630942,1735131084853,-500.0,0.00012156,2]
[346630943,1735131084864,-500.0,0.00012156,2]
[346630944,1735131084874,-500.0,0.00012156,2]
[346630945,1735131084887,-573.86,0.00012156,2]
[346630946,1735131084898,-593.19,0.00012156,2]
[346630947,1735131084908,-500.0,0.00012156,2]
[346630948,1735131084918,-592.57,0.00012156,2]
[346630949,1735131084929,-500.0,0.00012156,2]
[346630950,1735131084939,-500.0,0.00012156,2]
[346630951,1735131084949,-500.0,0.00012156,2]
[346630952,1735131084961,-716.98,0.00012156,2]
[346630953,1735131084971,-182.51,0.00012156,2]
[346630954,1735131084981,-500.0,0.00012156,2]
[346630955,1735131084991,-500.0,0.00012156,2]
[346630956,1735131085001,-500.0,0.00012156,2]
[346630957,1735131085011,-917.78,0.00012156,2]
[346630958,1735131085021,-500.0,0.00012156,2]
[346630959,1735131085030,-755.94,0.00012156,2]
[346630960,1735131085040,-500.0,0.00012156,2]
[346630961,1735131085051,-533.52,0.00012156,2]
[346630962,1735131085061,-601.26,0.00012156,2]
[346630963,1735131085070,-500.0,0.00012156,2]
[346630964,1735131085081,-541.29,0.00012156,2]
[346630965,1735131085091,-500.0,0.00012156,2]
[346630966,1735131085101,-500.0,0.00012156,2]
[346630967,1735131085110,-500.0,0.00012156,2]
[346630968,1735131085121,-775.45,0.00012156,2]
[346630969,1735131085130,-500.0,0.00012156,2]
[346630970,1735131085140,-500.0,0.00012156,2]
[346630971,1735131085150,-500.0,0.00012156,2]
[346630972,1735131085159,-500.0,0.00012156,2]
[346630973,1735131085169,-274.51,0.00012156,2]
[346630974,1735131085178,-500.0,0.00012156,2]
[346630975,1735131085188,-500.73,0.00012156,2]
[346630976,1735131085197,-500.0,0.00012156,2]
[346630977,1735131085207,-500.0,0.00012156,2]
[346630978,1735131085217,-686.17,0.00012156,2]
[346630979,1735131085227,-695.13,0.00012156,2]
[346630980,1735131085237,-286.8,0.00012156,2]
[346630981,1735131085247,-500.0,0.00012156,2]
[346630982,1735131085257,-872.26,0.00012156,2]
[346630983,1735131085267,-500.0,0.00012156,2]
[346630984,1735131085277,-625.65,0.00012156,2]
[346630985,1735131085287,-708.04,0.00012156,2]
[346630986,1735131085297,-691.11,0.00012156,2]
[346630987,1735131085306,-847.95,0.00012156,2]
[346630988,1735131085316,-500.0,0.00012156,2]
[346630989,1735131085326,-500.0,0.00012156,2]
[346630990,1735131085336,-1289.69,0.00012156,2]
[346630991,1735131085346,-500.0,0.00012156,2]
[346630992,1735131085356,-527.47,0.00012156,2]
[346630993,1735131085366,-938.04,0.00012156,2]
[346630994,1735131085376,-1005.17,0.00012156,2]
[346630995,1735131085386,-2998.66,0.00012156,2]
[346630996,1735131085396,-2340.97,0.00012156,2]
[346630997,1735131085406,-500.98,0.00012156,2]
[346630998,1735131085416,-807.9,0.00012156,2]
[346630999,1735131085427,-932.98,0.00012156,2]
[346631000,1735131085438,-500.0,0.00012156,2]
[346631001,1735131085448,-3291.47,0.00012156,2]
[346631002,1735131085458,-631.61,0.00012156,2]
[346631003,1735131085468,-4370.13,0.00012156,2]
[346631004,1735131085477,-500.0,0.00012156,2]
[346631005,1735131085487,-500.0,0.00012156,2]
[346631006,1735131085497,-180.25,0.00012156,2]
[346631007,1735131085507,-1321.53,0.00012156,2]
[346631008,1735131085517,-500.0,0.00012156,2]
[346631009,1735131085724,-876.87,0.00012156,2]
[346631010,1735131085735,-1670.65,0.00012156,2]
[346631011,1735131085744,-556.32,0.00012156,2]
[346631012,1735131085754,-500.0,0.00012156,2]
[346631013,1735131085763,-500.0,0.00012156,2]
[346631014,1735131085773,-500.0,0.00012156,2]
[346631015,1735131085782,-502.19,0.00012156,2]
[346631016,1735131085792,-500.0,0.00012156,2]
[346631017,1735131085801,-1075.04,0.00012156,2]
[346631018,1735131085811,-1100.66,0.00012156,2]
[346631019,1735131085820,-708.03,0.00012156,2]
[346631020,1735131085830,-1318.34,0.00012156,2]
[346631021,1735131085840,-841.72,0.00012156,2]
[346631022,1735131085849,-2751.52,0.00012156,2]
[346631023,1735131085859,-500.0,0.00012156,2]
[346631024,1735131085870,-561.79,0.00012156,2]
[346631025,1735131085879,-500.0,0.00012156,2]
[346631026,1735131085892,-504.84,0.00012156,2]
[346631027,1735131085901,-500.0,0.00012156,2]
[346631028,1735131085911,-858.87,0.00012156,2]
[346631029,1735131085920,-500.0,0.00012156,2]
[346631030,1735131085930,-1125.59,0.00012156,2]
[346631031,1735131085940,-427.83,0.00012156,2]
[346631032,1735131085949,-500.0,0.00012156,2]
[346631033,1735131085958,-500.0,0.00012156,2]
[346631034,1735131085969,-500.0,0.00012156,2]
[346631035,1735131085979,-500.0,0.00012156,2]
[346631036,1735131085989,-500.0,0.00012156,2]
[346631037,1735131085998,-646.12,0.00012156,2]
[346631038,1735131086008,-500.0,0.00012156,2]
[346631039,1735131086018,-500.0,0.00012156,2]
[346631040,1735131086028,-990.62,0.00012156,2]
[346631041,1735131086037,-563.25,0.00012156,2]
[346631042,1735131086047,-1291.71,0.00012156,2]
[346631043,1735131086056,-1034.76,0.00012156,2]
[346631044,1735131086065,-500.0,0.00012156,2]
[346631045,1735131086075,-500.0,0.00012156,2]
[346631046,1735131086084,-736.53,0.00012156,2]
[346631047,1735131086094,-500.0,0.00012156,2]
[346631048,1735131086104,-500.0,0.00012156,2]
[346631049,1735131086114,-500.0,0.00012157,2]
[346631050,1735131086126,-500.0,0.00012157,2]
[346631051,1735131086136,-371.34807255,0.00012157,2]
[346631052,1735131086145,-500.0,0.00012157,2]
[346631053,1735131086154,-500.0,0.00012157,2]
[346631054,1735131086164,-167.23,0.00012157,2]
[346631055,1735131086173,-503.86,0.00012157,2]
[346631056,1735131086183,-500.0,0.00012157,2]
[346631057,1735131086194,-399.0,0.00012157,2]
[346631058,1735131086204,-500.0,0.00012157,2]
[346631059,1735131086214,-500.0,0.00012157,2]
[346631060,1735131086224,-500.0,0.00012157,2]
[346631061,1735131086234,-500.0,0.00012157,2]
[346631062,1735131086245,-500.0,0.00012157,2]
[346631063,1735131086254,-500.0,0.00012157,2]
[346631064,1735131086265,-385.82,0.00012157,2]
[346631065,1735131086274,-500.0,0.00012157,2]
[346631066,1735131086284,-500.0,0.00012157,2]
[346631067,1735131086294,-500.0,0.00012157,2]
[346631068,1735131086303,-603.95,0.00012157,2]
[346631069,1735131086313,-500.0,0.00012157,2]
[346631070,1735131086323,-500.0,0.00012157,2]
[346631071,1735131086333,-500.0,0.00012157,2]
[346631072,1735131086342,-500.0,0.00012157,2]
[346631073,1735131086353,-563.29,0.00012157,2]
[346631074,1735131086363,-500.0,0.00012157,2]
[346631075,1735131086373,-500.0,0.00012157,2]
[346631076,1735131086382,-500.0,0.00012157,2]
[346631077,1735131086392,-162.92,0.00012157,2]
[346631078,1735131086402,-500.0,0.00012157,2]
[346631079,1735131086413,-769.86,0.00012157,2]
[346631080,1735131086422,-500.0,0.00012157,2]
[346631081,1735131086433,-500.0,0.00012157,2]
[346631082,1735131086442,-500.0,0.00012157,2]
[346631083,1735131086453,-500.0,0.00012157,2]
[346631084,1735131086462,-500.0,0.00012157,2]
[346631085,1735131086472,-500.0,0.00012157,2]
[346631086,1735131086483,-500.0,0.00012157,2]
[346631087,1735131086493,-500.0,0.00012157,2]
[346631088,1735131086502,-517.62,0.00012157,2]
[346631089,1735131086511,-500.0,0.00012157,2]
[346631090,1735131086521,-500.0,0.00012157,2]
[346631091,1735131086530,-579.07,0.00012157,2]
[346631092,1735131086539,-514.04,0.00012157,2]
[346631093,1735131086548,-500.0,0.00012157,2]
[346631094,1735131086559,-500.0,0.00012157,2]
[346631095,1735131086568,-237.7,0.00012157,2]
[346631096,1735131086578,-500.0,0.00012157,2]
[346631097,1735131086588,-500.0,0.00012157,2]
[346631098,1735131086597,-500.0,0.00012157,2]
[346631099,1735131086607,-503.33114913,0.00012157,2]
[346631100,1735131086619,-500.0,0.00012157,2]
[346631101,1735131086628,-500.0,0.00012157,2]
[346631102,1735131086637,-500.0,0.00012157,2]
[346631103,1735131086647,-500.0,0.00012157,2]
[346631104,1735131086656,-238.12426596,0.00012157,2]
[346631105,1735131086666,-500.0,0.00012157,2]
[346631106,1735131086675,-500.0,0.00012157,2]
[346631107,1735131086684,-500.0,0.00012157,2]
[346631108,1735131086694,-500.0,0.00012157,2]
[346631109,1735131086705,-500.0,0.00012157,2]
[346631110,1735131086715,-500.0,0.00012157,2]
[346631111,1735131086724,-500.0,0.00012157,2]
[346631112,1735131086734,-500.0,0.00012157,2]
[346631113,1735131086744,-500.0,0.00012157,2]
[346631114,1735131086754,-278.2390894,0.00012157,2]
[346631115,1735131086764,-500.0,0.00012157,2]
[346631116,1735131086775,-500.0,0.00012157,2]
[346631117,1735131086784,-500.0,0.00012157,2]
[346631118,1735131086793,-500.0,0.00012157,2]
[346631119,1735131086803,-500.0,0.00012157,2]
[346631120,1735131086812,-500.0,0.00012157,2]
[346631121,1735131086822,-500.0,0.00012157,2]
[346631122,1735131086831,-500.0,0.00012157,2]
[346631123,1735131086840,-500.0,0.00012157,2]
[346631124,1735131086850,-500.0,0.00012157,2]
[346631125,1735131086859,-500.0,0.00012157,2]
[346631126,1735131086871,-800.99,0.00012157,2]
[346631127,1735131086882,-500.0,0.00012157,2]
[346631128,1735131086894,-500.0,0.00012157,2]
[346631129,1735131086903,-500.0,0.00012157,2]
[346631130,1735131086913,-500.0,0.00012157,2]
[346631131,1735131086922,-160.10558156,0.00012157,2]
[346631132,1735131086933,-500.0,0.00012157,2]
[346631133,1735131086942,-500.0,0.00012157,2]
[346631134,1735131086951,-500.0,0.00012157,2]
[346631135,1735131086960,-594.31,0.00012157,2]
[346631136,1735131086969,-500.0,0.00012157,2]
[346631137,1735131086979,-733.99,0.00012157,2]
[346631138,1735131086989,-500.0,0.00012157,2]
[346631139,1735131086998,-848.17,0.00012157,2]
[346631140,1735131087008,-500.0,0.00012157,2]
[346631141,1735131087018,-500.0,0.00012157,2]
[346631142,1735131087027,-500.0,0.00012157,2]
[346631143,1735131087037,-327.0,0.00012157,2]
[346631144,1735131087046,-500.0,0.00012157,2]
[346631145,1735131087056,-500.0,0.00012157,2]
[346631146,1735131087065,-453.42444696,0.00012157,2]
[346631147,1735131087074,-500.0,0.00012157,2]
[346631148,1735131087083,-500.0,0.00012157,2]
[346631149,1735131087093,-500.0,0.00012157,2]
[346631150,1735131087102,-500.0,0.00012157,2]
[346631151,1735131087111,-507.72,0.00012157,2]
[346631152,1735131087122,-645.07,0.00012157,2]
[346631153,1735131087131,-566.52,0.00012157,2]
[346631154,1735131087141,-500.0,0.00012157,2]
[346631155,1735131087150,-506.8,0.00012157,2]
[346631156,1735131087160,-500.0,0.00012157,2]
[346631157,1735131087169,-769.52,0.00012157,2]
[346631158,1735131087178,-685.33,0.00012157,2]
[346631159,1735131087187,-156.88,0.00012157,2]
[346631160,1735131087196,-491.92275768,0.00012157,2]
[346631161,1735131087206,-500.0,0.00012157,2]
[346631162,1735131087215,-500.0,0.00012157,2]
[346631163,1735131087225,-500.0,0.00012157,2]
[346631164,1735131087234,-500.0,0.00012157,2]
[346631165,1735131087243,-541.95,0.00012157,2]
[346631166,1735131087252,-1365.53,0.00012157,2]
[346631167,1735131087262,-2537.2,0.00012157,2]
[346631168,1735131087272,-500.0,0.00012157,2]
[346631169,1735131087282,-500.0,0.00012157,2]
[346631170,1735131087291,-500.0,0.00012157,2]
[346631171,1735131087301,-500.0,0.00012157,2]
[346631172,1735131087311,-500.0,0.00012157,2]
[346631173,1735131087320,-500.0,0.00012157,2]
[346631174,1735131087330,-18139.91,0.00012157,2]
[346631175,1735131087339,-719.59,0.00012157,2]
[346631176,1735131087348,-428.04128376,0.00012157,2]
[346631177,1735131087357,-500.0,0.00012157,2]
[346631178,1735131087367,-1896.5,0.00012157,2]
[346631179,1735131087376,-500.0,0.00012157,2]
[346631180,1735131087386,-500.0,0.00012157,2]
[346631181,1735131087395,-1054.66,0.00012157,2]
[346631182,1735131087404,-500.0,0.00012157,2]
[346631183,1735131087414,-761.38,0.00012157,2]
[346631184,1735131087423,-500.0,0.00012157,2]
[346631185,1735131087432,-500.0,0.00012157,2]
[346631186,1735131087442,-500.0,0.00012157,2]
[346631187,1735131087452,-1677.18,0.00012157,2]
[346631188,1735131087461,-11637.58,0.00012157,2]
[346631189,1735131087471,-1333.78,0.00012157,2]
[346631190,1735131087481,-500.0,0.00012157,2]
[346631191,1735131087490,-1263.77,0.00012157,2]
[346631192,1735131087499,-500.0,0.00012157,2]
[346631193,1735131087508,-1223.08,0.00012157,2]
[346631194,1735131087517,-540.38,0.00012157,2]
[346631195,1735131087527,-789.1,0.00012157,2]
[346631196,1735131087536,-500.0,0.00012157,2]
[346631197,1735131087545,-693.73,0.00012157,2]
[346631198,1735131087555,-2294.99,0.00012157,2]
[346631199,1735131087564,-527.09,0.00012157,2]
[346631200,1735131087573,-619.82,0.00012157,2]
[346631201,1735131087582,-500.0,0.00012157,2]
[346631202,1735131087591,-500.0,0.00012157,2]
[346631203,1735131087601,-500.0,0.00012157,2]
[346631204,1735131087610,-196.07,0.00012157,2]
[346631205,1735131087620,-500.0,0.00012157,2]
[346631206,1735131087630,-1000.0,0.00012157,2]
[346631207,1735131087640,-500.0,0.00012157,2]
[346631208,1735131087649,-1118.61,0.00012157,2]
[346631209,1735131087658,-500.0,0.00012157,2]
[346631210,1735131087667,-500.0,0.00012157,2]
[346631211,1735131087677,-500.0,0.00012157,2]
[346631212,1735131087686,-721.92,0.00012157,2]
[346631213,1735131087696,-539.99,0.00012157,2]
[346631214,1735131087705,-500.0,0.00012157,2]
[346631215,1735131087715,-3201.18,0.00012157,2]
[346631216,1735131087724,-575.98,0.00012157,2]
[346631217,1735131087735,-1281.91,0.00012157,2]
[346631218,1735131087744,-500.0,0.00012157,2]
[346631219,1735131087754,-500.0,0.00012157,2]
[346631220,1735131087763,-500.0,0.00012157,2]
[346631221,1735131087773,-1278.42,0.00012157,2]
[346631222,1735131087782,-500.0,0.00012157,2]
[346631223,1735131087793,-674.03,0.00012157,2]
[346631224,1735131087802,-905.68,0.00012157,2]
[346631225,1735131087811,-500.0,0.00012158,2]
[346631226,1735131087820,-983.02,0.00012158,2]
[346631227,1735131087830,-500.0,0.00012158,2]
[346631228,1735131087851,-500.0,0.00012158,2]
[346631229,1735131087861,-724.71,0.00012158,2]
[346631230,1735131087872,-500.0,0.00012158,2]
[346631231,1735131087882,-500.0,0.00012158,2]
[346631232,1735131087894,-1035.17107254,0.00012184,2]
[346631233,1735131087903,-1115.91608467,0.00012184,2]
[346631234,1735131087913,-389.0,0.0001219,2]
[346631235,1735131087922,-230.0,0.0001219,2]
[346631236,1735131087932,-302.67,0.00012192,2]
[346631237,1735131087942,-684.94,0.00012199,2]
[346631238,1735131087951,-962.0,0.00012221,2]
[346631239,1735131087961,-500.0,0.00012239,2]
[346631240,1735131087971,-2000.0,0.00012239,2]
[346631241,1735131087981,-500.0,0.00012239,2]
[346631242,1735131087991,-200.0,0.00012239,2]
[346631243,1735131088000,-500.0,0.00012294,2]
[346631244,1735131088010,-175.906182,0.00012301,2]
[346631245,1735131088019,-500.0,0.00012327,2]
[346631246,1735131088030,-630.03,0.00012328,2]
[346631247,1735131088113,-630.03,0.00012328,2]
[346631248,1735131088123,-630.03,0.00012328,2]
[346631249,1735131088133,-630.03,0.00012328,2]
[346631250,1735131088142,-630.03,0.00012328,2]
[346631251,1735131088152,-630.03,0.00012328,2]
[346631252,1735131088161,-686.82,0.00012328,2]
[346631253,1735131088171,-686.82,0.00012328,2]
[346631254,1735131088180,-686.82,0.00012328,2]
[346631255,1735131088189,-686.82,0.00012328,2]
[346631256,1735131088199,-686.82,0.00012328,2]
[346631257,1735131088209,-686.82,0.00012328,2]
[346631258,1735131088218,-527.47,0.0001233,2]
[346631259,1735131088227,-500.0,0.00012331,2]
[346631260,1735131088237,-500.0,0.00012332,2]
[346631261,1735131088246,-500.0,0.00012332,2]
[346631262,1735131088256,-500.0,0.00012332,2]
[346631263,1735131088266,-500.0,0.00012332,2]
[346631264,1735131088276,-175.95011123,0.00012346,2]
[346631265,1735131088286,-365.119,0.0001235,2]
[346631266,1735131088296,-1000.0,0.00012364,2]
[346631267,1735131088307,-825.776185,0.00012383,2]
[346631268,1735131088316,-932.494223,0.00012383,2]
[346631269,1735131088326,-894.82,0.00012388,2]
[346631270,1735131088335,-500.0,0.00012388,2]
[346631271,1735131088344,-706.16,0.00012388,2]
[346631272,1735131088354,-150.9592527,0.00012399,2]
[346631273,1735131088364,-150.95925267,0.00012399,2]
[346631274,1735131088374,-150.95925267,0.00012399,2]
[346631275,1735131088384,-8132.2208355,0.00012399,2]
[346631276,1735131088393,-8132.22083547,0.00012399,2]
[346631277,1735131088402,-8132.22083547,0.00012399,2]
[346631278,1735131088412,-8132.22083547,0.00012399,2]
[346631279,1735131088421,-8132.22083547,0.00012399,2]
[346631280,1735131088431,-8132.22083547,0.00012399,2]
[346631281,1735131088442,-8132.22083547,0.00012399,2]
[346631282,1735131088451,-8132.22083547,0.00012399,2]
[346631283,1735131088461,-500.0,0.00012429,2]
[346631284,1735131088471,-158.52,0.00012429,2]
[346631285,1735131088480,-500.0,0.00012429,2]
[346631286,1735131088490,-500.0,0.00012429,2]
[346631287,1735131088500,-500.0,0.00012429,2]
[346631288,1735131088510,-500.0,0.00012429,2]
[346631289,1735131088519,-500.0,0.00012429,2]
[346631290,1735131088528,-500.0,0.00012429,2]
[346631291,1735131088537,-500.0,0.00012429,2]
[346631292,1735131088547,-500.0,0.00012429,2]
[346631293,1735131088557,-1061.03,0.00012429,2]
[346631294,1735131088566,-519.02,0.00012429,2]
[346631295,1735131088578,-500.0,0.00012429,2]
[346631296,1735131088587,-1272.96,0.00012429,2]
[346631297,1735131088597,-1036.35,0.00012429,2]
[346631298,1735131088607,-1138.98,0.00012429,2]
[346631299,1735131088616,-353.21,0.00012429,2]
[346631300,1735131088627,-500.0,0.00012429,2]
[346631301,1735131088637,-1993.01,0.00012429,2]
[346631302,1735131088646,-1131.09,0.00012429,2]
[346631303,1735131088655,-5828.78,0.00012429,2]
[346631304,1735131088665,-3493.53,0.00012429,2]
[346631305,1735131088675,-926.05,0.00012429,2]
[346631306,1735131088684,-500.0,0.00012429,2]
[346631307,1735131088693,-462.43,0.00012429,2]
[346631308,1735131088703,-500.0,0.00012429,2]
[346631309,1735131088711,-1337.08,0.00012429,2]
[346631310,1735131088720,-500.0,0.00012429,2]
[346631311,1735131088729,-1454.36,0.00012429,2]
[346631312,1735131088738,-939.02,0.00012429,2]
[346631313,1735131088748,-1046.44,0.00012429,2]
[346631314,1735131088757,-500.0,0.00012429,2]
[346631315,1735131088766,-906.6,0.00012429,2]
[346631316,1735131088776,-500.0,0.00012429,2]
[346631317,1735131088785,-503.7,0.00012429,2]
[346631318,1735131088795,-500.0,0.00012429,2]
[346631319,1735131088803,-1085.74,0.00012429,2]
[346631320,1735131088813,-711.38,0.00012429,2]
[346631321,1735131088823,-500.0,0.00012429,2]
[346631322,1735131088832,-2304.52,0.00012429,2]
[346631323,1735131088841,-1476.07,0.00012429,2]
[346631324,1735131088851,-2368.27,0.00012429,2]
[346631325,1735131088860,-1487.9,0.00012429,2]
[346631326,1735131088869,-1190.11,0.00012429,2]
[346631327,1735131088879,-631.67,0.00012429,2]
[346631328,1735131088892,-500.0,0.00012429,2]
[346631329,1735131088901,-4164.09,0.00012429,2]
[346631330,1735131088910,-1143.51,0.00012429,2]
[346631331,1735131088919,-6765.86,0.00012429,2]
[346631332,1735131088930,-2500.32,0.00012429,2]
[346631333,1735131088939,-3730.17,0.00012429,2]
[346631334,1735131088949,-1338.35,0.00012429,2]
[346631335,1735131088962,-500.0,0.00012429,2]
[346631336,1735131088972,-1747.75,0.00012429,2]
[346631337,1735131088983,-2277.64,0.00012429,2]
[346631338,1735131088993,-1193.19,0.00012429,2]
[346631339,1735131089004,-2786.79,0.00012429,2]
[346631340,1735131089013,-700.74,0.00012429,2]
[346631341,1735131089022,-562.74,0.00012429,2]
[346631342,1735131089033,-571.82,0.00012429,2]
[346631343,1735131089042,-1240.01,0.00012429,2]
[346631344,1735131089051,-8175.99,0.00012429,2]
[346631345,1735131089060,-948.34,0.00012429,2]
[346631346,1735131089069,-2773.89,0.00012429,2]
[346631347,1735131089078,-500.0,0.00012429,2]
[346631348,1735131089088,-1806.95,0.00012429,2]
[346631349,1735131089097,-7135.29,0.00012429,2]
[346631350,1735131089108,-514.73948337,0.00012429,2]
[346631351,1735131089118,-575.73,0.00012429,2]
[346631352,1735131089127,-1295.14,0.00012429,2]
[346631353,1735131089137,-500.0,0.00012429,2]
[346631354,1735131089146,-867.2,0.00012429,2]
[346631355,1735131089156,-973.69,0.00012429,2]
[346631356,1735131089166,-500.0,0.00012429,2]
[346631357,1735131089176,-971.02,0.00012429,2]
[346631358,1735131089185,-500.0,0.00012429,2]
[346631359,1735131089195,-500.0,0.00012429,2]
[346631360,1735131089204,-500.0,0.00012429,2]
[346631361,1735131089213,-5812.71,0.00012429,2]
[346631362,1735131089223,-557.56,0.00012429,2]
[346631363,1735131089233,-500.0,0.00012429,2]
[346631364,1735131089242,-500.0,0.0001243,2]
[346631365,1735131089251,-500.0,0.0001243,2]
[346631366,1735131089261,-500.0,0.0001243,2]